[Event "Gaprindashvili Cup Open II Stage 2020"]
[Site "Online"]
[Date "2020.11.08"]
[Round "2.13"]
[White "Kekelidze, Mikheil"]
[Black "Nemsadze, Daviti"]
[Result "0-1"]
[ECO "B07"]
[WhiteElo "2388"]
[BlackElo "1690"]
[Annotator "ChessBase"]
[PlyCount "128"]
[EventDate "2020.11.04"]
[EventType "swiss"]
[SourceTitle "playchess.com"]
[Source "ChessBase"]
[SourceQuality "1"]
[TimeControl "1500+5"]

1. d4 {[%emt 0:00:19]} d6 {[%emt 0:00:10]} 2. e4 {[%emt 0:00:05]} Nf6 {[%emt 0:00:42]} 3. Nc3 {[%emt 0:00:11]} Nbd7 {[%emt 0:00:21]} 4. f4 {[%emt 0:00:34]} e5 {[%emt 0:01:09]} 5. Nf3 {[%emt 0:00:04]} exd4 {[%emt 0:01:15]} 6. Qxd4 {[%emt 0:00:05]} c6 {[%emt 0:00:49]} 7. Be3 {[%emt 0:00:05]} d5 {[%emt 0:00:50]} 8. e5 {[%emt 0:03:04]} Ng4 {[%emt 0:00:30]} 9. Bg1 {[%emt 0:00:32]} Nh6 {[%emt 0:00:40]} 10. Qd2 {[%emt 0:00:34]} Bc5 {[%emt 0:00:26]} 11. O-O-O {[%emt 0:00:40]} O-O {[%emt 0:00:23]} 12. Bd3 {[%emt 0:01:03]} Bxg1 {[%emt 0:00:12]} 13. Rhxg1 {[%emt 0:00:05]} Nc5 {[%emt 0:00:11]} 14. h3 {[%emt 0:01:50]} f6 {[%emt 0:01:18]} 15. g4 {[%emt 0:00:27]} fxe5 {[%emt 0:00:04]} 16. Nxe5 {[%emt 0:00:14]} Nf7 {[%emt 0:00:13]} 17. Nxf7 {[%emt 0:00:32]} Rxf7 {[%emt 0:00:04]} 18. f5 {[%emt 0:00:02]} Nxd3+ {[%emt 0:01:13]} 19. cxd3 {[%emt 0:02:39]} Bd7 {[%emt 0:00:20]} 20. Qf2 {[%emt 0:01:53]} b5 {[%emt 0:00:22]} 21. Kb1 {[%emt 0:00:15]} Qf6 {[%emt 0:00:19]} 22. Rde1 {[%emt 0:00:48]} a5 {[%emt 0:00:23]} 23. Qf4 {[%emt 0:02:16]} Qh4 {[%emt 0:00:41]} 24. Qg3 {[%emt 0:00:30]} Qxg3 {[%emt 0:00:24]} 25. Rxg3 {[%emt 0:00:04]} g6 {[%emt 0:00:10]} 26. fxg6 {[%emt 0:00:59]} hxg6 {[%emt 0:00:03]} 27. Kc1 {[%emt 0:00:52]} a4 {[%emt 0:00:14]} 28. a3 {[%emt 0:00:33]} Raf8 {[%emt 0:00:18]} 29. Kd2 {[%emt 0:00:09]} Rf2+ {[%emt 0:00:21]} 30. Re2 {[%emt 0:00:07]} d4 {[%emt 0:00:19]} 31. Ne4 {[%emt 0:00:14]} Rf1 {[%emt 0:00:17]} 32. Re1 {[%emt 0:02:20]} Kg7 {[%emt 0:00:16]} 33. Rg1 {[%emt 0:01:05]} Rxg1 {[%emt 0:00:08]} 34. Rxg1 {[%emt 0:00:06]} Rf3 {[%emt 0:00:12]} 35. Rg3 {[%emt 0:00:25]} Rf1 {[%emt 0:00:11]} 36. Rg2 {[%emt 0:01:05]} Be6 {[%emt 0:00:19]} 37. Rf2 {[%emt 0:00:11]} Rb1 {[%emt 0:00:18]} 38. Kc2 {[%emt 0:00:04]} Rh1 {[%emt 0:00:05]} 39. Ng5 {[%emt 0:00:15]} Bb3+ {[%emt 0:00:05]} 40. Kd2 {[%emt 0:00:02]} Rb1 {[%emt 0:00:08]} 41. Rf4 {[%emt 0:00:10]} c5 {[%emt 0:00:15]} 42. Ne4 {[%emt 0:00:11]} b4 {[%emt 0:00:09]} 43. Nxc5 {[%emt 0:00:31]} Rxb2+ {[%emt 0:00:06]} 44. Kc1 {[%emt 0:00:14]} Rc2+ {[%emt 0:00:04]} 45. Kb1 {[%emt 0:00:03]} bxa3 {[%emt 0:00:11]} 46. Nxb3 {[%emt 0:00:10]} axb3 {[%emt 0:00:04]} 47. Rf1 {[%emt 0:00:03]} a2+ {[%emt 0:00:15]} 48. Ka1 {[%emt 0:00:02]} Rd2 {[%emt 0:00:23]} 49. h4 {[%emt 0:00:06]} Rxd3 {[%emt 0:00:05]} 50. Kb2 {[%emt 0:00:06]} Rg3 {[%emt 0:00:40]} 51. h5 {[%emt 0:00:02]} g5 {[%emt 0:00:14]} 52. Rd1 {[%emt 0:00:05]} Kf6 {[%emt 0:00:10]} 53. h6 {[%emt 0:00:10]} Kg6 {[%emt 0:00:03]} 54. Rh1 {[%emt 0:00:03]} Kh7 {[%emt 0:00:01]} 55. Re1 {[%emt 0:00:12]} Kxh6 {[%emt 0:00:04]} 56. Re6+ {[%emt 0:00:01]} Kg7 {[%emt 0:00:02]} 57. Ra6 {[%emt 0:00:06]} Kf7 {[%emt 0:00:51]} 58. Ra4 {[%emt 0:00:09]} Ke6 {[%emt 0:00:02]} 59. Ra5 {[%emt 0:00:08]} Kd6 {[%emt 0:00:06]} 60. Ka1 {[%emt 0:00:03]} Rg1+ {[%emt 0:00:02]} 61. Kb2 {[%emt 0:00:02]} a1=Q+ {[%emt 0:00:02]} 62. Rxa1 {[%emt 0:00:03]} Rxa1 {[%emt 0:00:01]} 63. Kxa1 {[%emt 0:00:01]} d3 {[%emt 0:00:01]} 64. Kb2 {[%emt 0:00:01]} d2 {[%emt 0:00:01]} 0-1

[Event "Gaprindashvili Cup Open II Stage 2020"]
[Site "Online"]
[Date "2020.11.08"]
[Round "2.14"]
[White "Chanturia, Lasha"]
[Black "Chighladze, Iveri"]
[Result "0-1"]
[ECO "B02"]
[WhiteElo "1761"]
[BlackElo "2335"]
[Annotator "ChessBase"]
[PlyCount "82"]
[EventDate "2020.11.04"]
[EventType "swiss"]
[SourceTitle "playchess.com"]
[Source "ChessBase"]
[SourceQuality "1"]
[TimeControl "1500+5"]

1. e4 {[%emt 0:00:00]} Nf6 {[%emt 0:00:04]} 2. e5 {[%emt 0:00:05]} Nd5 {[%emt 0:00:02]} 3. Nc3 {[%emt 0:00:02]} Nxc3 {[%emt 0:00:05]} 4. dxc3 {[%emt 0:00:04]} Nc6 {[%emt 0:00:03]} 5. Nf3 {[%emt 0:00:03]} g6 {[%emt 0:00:03]} 6. Bb5 {[%emt 0:00:07]} Bg7 {[%emt 0:00:03]} 7. Bxc6 {[%emt 0:00:07]} bxc6 {[%emt 0:00:09]} 8. O-O {[%emt 0:00:08]} O-O {[%emt 0:00:04]} 9. Bf4 {[%emt 0:00:11]} d6 {[%emt 0:00:03]} 10. Qe2 {[%emt 0:00:27]} c5 {[%emt 0:00:04]} 11. Rad1 {[%emt 0:00:18]} Bb7 {[%emt 0:00:07]} 12. Nd2 {[%emt 0:00:20]} Qc8 {[%emt 0:00:06]} 13. exd6 {[%emt 0:00:20]} exd6 {[%emt 0:00:06]} 14. Rfe1 {[%emt 0:00:10]} Qf5 {[%emt 0:00:33]} 15. Bg3 {[%emt 0:00:43]} Qxc2 {[%emt 0:00:09]} 16. Rc1 {[%emt 0:00:49]} Qa4 {[%emt 0:00:13]} 17. Qe7 {[%emt 0:00:13]} Bh6 {[%emt 0:01:03]} 18. Red1 {[%emt 0:01:33]} Qc6 {[%emt 0:00:18]} 19. f3 {[%emt 0:00:20]} Qe8 {[%emt 0:01:32]} 20. Qxe8 {[%emt 0:03:59]} Rfxe8 {[%emt 0:00:06]} 21. Kf1 {[%emt 0:00:02]} Ba6+ {[%emt 0:00:59]} 22. c4 {[%emt 0:00:06]} d5 {[%emt 0:00:09]} 23. b3 {[%emt 0:00:06]} dxc4 {[%emt 0:00:07]} 24. bxc4 {[%emt 0:00:05]} Rad8 {[%emt 0:00:05]} 25. f4 {[%emt 0:00:29]} Rd4 {[%emt 0:00:46]} 26. Kf2 {[%emt 0:01:04]} Red8 {[%emt 0:00:26]} 27. Ke2 {[%emt 0:00:20]} Bxf4 {[%emt 0:00:17]} 28. Bxf4 {[%emt 0:00:24]} Rxf4 {[%emt 0:00:06]} 29. Nf3 {[%emt 0:00:51]} Rxd1 {[%emt 0:00:08]} 30. Rxd1 {[%emt 0:00:13]} Rxc4 {[%emt 0:00:07]} 31. Rd8+ {[%emt 0:00:20]} Kg7 {[%emt 0:00:05]} 32. Ke3 {[%emt 0:00:04]} Rc2 {[%emt 0:00:15]} 33. Rd7 {[%emt 0:00:08]} Re2+ {[%emt 0:00:22]} 34. Kf4 {[%emt 0:00:06]} Rxg2 {[%emt 0:00:30]} 35. Rxc7 {[%emt 0:00:03]} Rxa2 {[%emt 0:01:20]} 36. Rxa7 {[%emt 0:00:11]} Bc4 {[%emt 0:00:17]} 37. Rc7 {[%emt 0:00:11]} Bd5 {[%emt 0:00:07]} 38. Ng5 {[%emt 0:00:52]} Rf2+ {[%emt 0:00:47]} 39. Ke3 {[%emt 0:00:12]} Rxh2 {[%emt 0:00:24]} 40. Rxc5 {[%emt 0:00:08]} h6 {[%emt 0:00:10]} 41. Rxd5 {[%emt 0:00:24]} Rh5 {[%emt 0:00:10]} 0-1

[Event "Gaprindashvili Cup Open II Stage 2020"]
[Site "Online"]
[Date "2020.11.08"]
[Round "2.15"]
[White "Tsanatsqenishvili, Alexandre"]
[Black "Mindiashvili, Tengiz"]
[Result "0-1"]
[ECO "C63"]
[WhiteElo "1702"]
[BlackElo "1923"]
[Annotator "NA"]
[PlyCount "36"]
[EventDate "2020.11.04"]
[EventType "swiss"]
[SourceTitle "playchess.com"]
[Source "ChessBase"]
[SourceQuality "1"]
[TimeControl "1500+5"]

1. e4 {[%emt 0:00:02]} e5 {[%emt 0:00:05]} 2. Nf3 {[%emt 0:00:03]} Nc6 {[%emt 0:00:02]} 3. Bb5 {[%emt 0:00:02]} f5 {[%emt 0:00:02]} 4. d3 {[%emt 0:01:14]} fxe4 {[%emt 0:00:44]} 5. dxe4 {[%emt 0:00:04]} Nf6 {[%emt 0:00:02]} 6. O-O {[%emt 0:00:03]} d6 {[%emt 0:00:47]} 7. Nc3 {[%emt 0:03:46]} Be7 {[%emt 0:00:15]} 8. h3 {[%emt 0:06:49]} O-O {[%emt 0:00:19]} 9. Bc4+ {[%emt 0:00:05]} Kh8 {[%emt 0:00:03]} 10. Ng5 {[%emt 0:00:01]} Qe8 {[%emt 0:00:51]} 11. f4 {[%emt 0:00:04]} h6 {[%emt 0:00:47]} 12. Nf3 {[%emt 0:00:28]} exf4 {[%emt 0:00:31]} 13. Re1 {[%emt 0:04:55]} Ne5 {[%emt 0:02:59]} 14. Bb3 {[%emt 0:00:07]} Qg6 {[%emt 0:00:46]} 15. Bxf4 {[%emt 0:00:54]} Nxf3+ {[%emt 0:01:26]} 16. Qxf3 {[%emt 0:00:05]} Nh5 {[%emt 0:00:02]} 17. Ne2 {[%emt 0:01:05]} Bg5 {[%emt 0:00:13]} 18. g3 {[%emt 0:00:06]} Bxf4 {[%emt 0:00:05]} 0-1

[Event "Gaprindashvili Cup Open II Stage 2020"]
[Site "Online"]
[Date "2020.11.08"]
[Round "2.17"]
[White "Tsanatsqenishvili, Giorgi"]
[Black "Adamia, Jaba"]
[Result "1/2-1/2"]
[ECO "B47"]
[WhiteElo "1631"]
[BlackElo "1899"]
[Annotator "NA"]
[PlyCount "85"]
[EventDate "2020.11.04"]
[EventType "swiss"]
[SourceTitle "playchess.com"]
[Source "ChessBase"]
[SourceQuality "1"]
[TimeControl "1500+5"]

1. e4 {[%emt 0:00:00]} c5 {[%emt 0:00:04]} 2. Nf3 {[%emt 0:00:02]} e6 {[%emt 0:00:05]} 3. d4 {[%emt 0:00:02]} cxd4 {[%emt 0:00:03]} 4. Nxd4 {[%emt 0:00:02]} a6 {[%emt 0:00:04]} 5. g3 {[%emt 0:00:01]} Qc7 {[%emt 0:00:13]} 6. Bg2 {[%emt 0:00:02]} Nc6 {[%emt 0:00:09]} 7. Be3 {[%emt 0:00:18]} Nf6 {[%emt 0:00:08]} 8. O-O {[%emt 0:00:03]} Be7 {[%emt 0:00:36]} 9. Nc3 {[%emt 0:00:19]} O-O {[%emt 0:01:02]} 10. Nxc6 {[%emt 0:00:21]} dxc6 {[%emt 0:00:06]} 11. a4 {[%emt 0:00:59]} a5 {[%emt 0:00:51]} 12. f4 {[%emt 0:00:22]} e5 {[%emt 0:00:17]} 13. f5 {[%emt 0:00:11]} Rd8 {[%emt 0:00:14]} 14. Qe2 {[%emt 0:00:04]} b6 {[%emt 0:00:04]} 15. Rfd1 {[%emt 0:00:32]} Rxd1+ {[%emt 0:00:32]} 16. Rxd1 {[%emt 0:00:05]} Ba6 {[%emt 0:00:06]} 17. Qf3 {[%emt 0:00:04]} Rd8 {[%emt 0:00:22]} 18. g4 {[%emt 0:00:19]} Rxd1+ {[%emt 0:00:31]} 19. Qxd1 {[%emt 0:00:03]} Nd7 {[%emt 0:00:28]} 20. g5 {[%emt 0:00:25]} Bc5 {[%emt 0:01:20]} 21. Bxc5 {[%emt 0:01:18]} Nxc5 {[%emt 0:00:08]} 22. h4 {[%emt 0:04:44]} Qd7 {[%emt 0:00:44]} 23. Qxd7 {[%emt 0:00:10]} Nxd7 {[%emt 0:00:04]} 24. Kf2 {[%emt 0:00:15]} Kf8 {[%emt 0:00:26]} 25. Nd1 {[%emt 0:00:43]} Ke7 {[%emt 0:01:41]} 26. Ke3 {[%emt 0:00:40]} Kd6 {[%emt 0:01:03]} 27. Bh3 {[%emt 0:01:59]} f6 {[%emt 0:00:43]} 28. g6 {[%emt 0:01:08]} h6 {[%emt 0:00:27]} 29. b3 {[%emt 0:00:08]} Nc5 {[%emt 0:00:48]} 30. Nc3 {[%emt 0:01:00]} Nb7 {[%emt 0:00:33]} 31. Bg4 {[%emt 0:00:24]} Kc5 {[%emt 0:00:25]} 32. Be2 {[%emt 0:00:08]} Bxe2 {[%emt 0:00:19]} 33. Nxe2 {[%emt 0:00:02]} Kb4 {[%emt 0:01:07]} 34. Kd2 {[%emt 0:02:41]} Nd6 {[%emt 0:00:45]} 35. Nc3 {[%emt 0:00:25]} Ne8 {[%emt 0:03:44]} 36. h5 {[%emt 0:00:14]} Nc7 {[%emt 0:00:10]} 37. Kd3 {[%emt 0:02:41]} Na6 {[%emt 0:00:36]} 38. Kd2 {[%emt 0:00:51]} Nc5 {[%emt 0:01:32]} 39. Na2+ {[%emt 0:00:03]} Ka3 {[%emt 0:00:03]} 40. Nc3 {[%emt 0:00:01]} Kb2 {[%emt 0:01:30]} 41. Nd1+ {[%emt 0:00:09]} Kb1 {[%emt 0:01:03]} 42. Nc3+ {[%emt 0:00:16]} Kb2 {[%emt 0:00:14]} 43. Nd1+ {[%emt 0:00:02]} 1/2-1/2

[Event "Gaprindashvili Cup Open II Stage 2020"]
[Site "Online"]
[Date "2020.11.08"]
[Round "2.18"]
[White "Endeladze, Ramaz"]
[Black "Gogolashvili, Giorgi"]
[Result "1-0"]
[ECO "A41"]
[WhiteElo "1894"]
[BlackElo "1448"]
[Annotator "NA"]
[PlyCount "83"]
[EventDate "2020.11.04"]
[EventType "swiss"]
[SourceTitle "playchess.com"]
[Source "ChessBase"]
[SourceQuality "1"]
[TimeControl "1500+5"]

1. d4 {[%emt 0:00:01]} g6 {[%emt 0:00:08]} 2. Nf3 {[%emt 0:00:07]} Bg7 {[%emt 0:00:02]} 3. c4 {[%emt 0:00:01]} d6 {[%emt 0:00:01]} 4. Nc3 {[%emt 0:00:02]} Nc6 {[%emt 0:00:01]} 5. g3 {[%emt 0:00:01]} e5 {[%emt 0:00:02]} 6. dxe5 {[%emt 0:00:24]} Nxe5 {[%emt 0:00:05]} 7. Nxe5 {[%emt 0:00:02]} Bxe5 {[%emt 0:00:04]} 8. Bg2 {[%emt 0:00:02]} Ne7 {[%emt 0:00:15]} 9. O-O {[%emt 0:00:03]} O-O {[%emt 0:00:05]} 10. Bh6 {[%emt 0:00:09]} Re8 {[%emt 0:00:32]} 11. Bg5 {[%emt 0:00:10]} Be6 {[%emt 0:01:30]} 12. Nd5 {[%emt 0:01:23]} Bxd5 {[%emt 0:00:09]} 13. cxd5 {[%emt 0:00:02]} Qd7 {[%emt 0:00:11]} 14. Qd2 {[%emt 0:00:08]} Nf5 {[%emt 0:00:24]} 15. Bh3 {[%emt 0:00:04]} Bg7 {[%emt 0:01:40]} 16. Rfe1 {[%emt 0:00:20]} Qb5 {[%emt 0:00:24]} 17. Bxf5 {[%emt 0:00:13]} gxf5 {[%emt 0:00:02]} 18. Rab1 {[%emt 0:00:07]} Re5 {[%emt 0:00:13]} 19. Rbd1 {[%emt 0:00:02]} Rae8 {[%emt 0:00:22]} 20. e3 {[%emt 0:00:02]} Re4 {[%emt 0:00:27]} 21. b3 {[%emt 0:00:05]} Rg4 {[%emt 0:00:46]} 22. Bf4 {[%emt 0:00:10]} Rg6 {[%emt 0:00:49]} 23. Qc2 {[%emt 0:00:05]} Qd7 {[%emt 0:00:17]} 24. Rc1 {[%emt 0:00:04]} Re7 {[%emt 0:00:06]} 25. Qd3 {[%emt 0:00:21]} Be5 {[%emt 0:00:53]} 26. Rc4 {[%emt 0:00:32]} b5 {[%emt 0:00:58]} 27. Rcc1 {[%emt 0:00:04]} b4 {[%emt 0:01:01]} 28. Rc4 {[%emt 0:00:09]} Bc3 {[%emt 0:00:03]} 29. Rd1 {[%emt 0:00:17]} a5 {[%emt 0:02:43]} 30. a4 {[%emt 0:00:04]} Re8 {[%emt 0:05:34]} 31. Rc6 {[%emt 0:00:08]} h5 {[%emt 0:02:30]} 32. h4 {[%emt 0:00:05]} Re4 {[%emt 0:00:45]} 33. Qb5 {[%emt 0:00:05]} Qe7 {[%emt 0:01:21]} 34. Qb8+ {[%emt 0:00:06]} Kg7 {[%emt 0:00:02]} 35. Qxc7 {[%emt 0:01:08]} Qxh4 {[%emt 0:01:04]} 36. Rxd6 {[%emt 0:00:08]} Qg4 {[%emt 0:00:27]} 37. Rxg6+ {[%emt 0:00:06]} Kxg6 {[%emt 0:00:08]} 38. Rf1 {[%emt 0:00:28]} h4 {[%emt 0:00:33]} 39. f3 {[%emt 0:00:10]} Qh3 {[%emt 0:00:45]} 40. fxe4 {[%emt 0:00:05]} fxe4 {[%emt 0:00:11]} 41. Qd6+ {[%emt 0:00:07]} f6 {[%emt 0:00:06]} 42. Qe6 {[%emt 0:00:04]} 1-0

[Event "Gaprindashvili Cup Open II Stage 2020"]
[Site "Online"]
[Date "2020.11.08"]
[Round "3.14"]
[White "Adamia, Jaba"]
[Black "Kachkachishvili, Lasha"]
[Result "1-0"]
[ECO "D58"]
[WhiteElo "1899"]
[BlackElo "1681"]
[Annotator "NA RC"]
[PlyCount "105"]
[EventDate "2020.11.04"]
[EventType "swiss"]
[SourceTitle "playchess.com"]
[Source "ChessBase"]
[SourceQuality "1"]
[TimeControl "1500+5"]

1. d4 {[%emt 0:00:03]} Nf6 {[%emt 0:00:03]} 2. c4 {[%emt 0:00:03]} e6 {[%emt 0:00:03]} 3. Nf3 {[%emt 0:00:02]} b6 {[%emt 0:00:02]} 4. Bg5 {[%emt 0:00:02]} Bb7 {[%emt 0:00:07]} 5. e3 {[%emt 0:00:06]} Be7 {[%emt 0:00:08]} 6. Nc3 {[%emt 0:00:03]} O-O {[%emt 0:00:03]} 7. Bd3 {[%emt 0:00:04]} d5 {[%emt 0:00:17]} 8. cxd5 {[%emt 0:00:19]} exd5 {[%emt 0:00:08]} 9. O-O {[%emt 0:00:06]} h6 {[%emt 0:00:04]} 10. Bh4 {[%emt 0:00:04]} c6 {[%emt 0:00:37]} 11. Rc1 {[%emt 0:00:16]} Na6 {[%emt 0:00:05]} 12. Ne5 {[%emt 0:00:26]} Rc8 {[%emt 0:00:58]} 13. Qf3 {[%emt 0:02:10]} Nb4 {[%emt 0:02:24]} 14. Bb1 {[%emt 0:00:57]} c5 {[%emt 0:02:14]} 15. Qf5 {[%emt 0:02:07]} Ne4 {[%emt 0:00:20]} 16. Bxe7 {[%emt 0:01:15]} Qxe7 {[%emt 0:00:04]} 17. a3 {[%emt 0:02:56]} Na6 {[%emt 0:04:43]} 18. Nxe4 {[%emt 0:00:51]} dxe4 {[%emt 0:00:20]} 19. Bxe4 {[%emt 0:03:01]} Bxe4 {[%emt 0:00:18]} 20. Qxe4 {[%emt 0:00:02]} cxd4 {[%emt 0:00:05]} 21. exd4 {[%emt 0:00:26]} Rcd8 {[%emt 0:00:50]} 22. Rfe1 {[%emt 0:01:09]} Qd6 {[%emt 0:01:14]} 23. Nc6 {[%emt 0:02:15]} Rd7 {[%emt 0:00:12]} 24. Ne7+ {[%emt 0:00:14]} Kh8 {[%emt 0:00:10]} 25. Nf5 {[%emt 0:00:24]} Qd5 {[%emt 0:01:31]} 26. Qf4 {[%emt 0:00:29]} Nb8 {[%emt 0:01:55]} 27. Nxh6 {[%emt 0:03:20]} Qxd4 {[%emt 0:03:29]} 28. Nxf7+ {[%emt 0:00:00]} Rfxf7 {[%emt 0:00:06]} 29. Qxb8+ {[%emt 0:00:00]} Rd8 {[%emt 0:00:25]} 30. Qg3 {[%emt 0:00:00]} Rdf8 {[%emt 0:00:09]} 31. Rc2 {[%emt 0:00:00]} Re7 {[%emt 0:00:51]} 32. Rec1 {[%emt 0:01:42]} Qe4 {[%emt 0:00:16]} 33. h3 {[%emt 0:00:14]} Ref7 {[%emt 0:00:04]} 34. Rc7 {[%emt 0:00:39]} Rxc7 {[%emt 0:00:16]} 35. Rxc7 {[%emt 0:01:06]} Qd4 {[%emt 0:00:04]} 36. Rc3 {[%emt 0:00:16]} b5 {[%emt 0:00:07]} 37. b4 {[%emt 0:00:20]} Kg8 {[%emt 0:00:23]} 38. Re3 {[%emt 0:00:06]} Rc8 {[%emt 0:00:08]} 39. Kh2 {[%emt 0:00:04]} Rf8 {[%emt 0:00:05]} 40. Rf3 {[%emt 0:00:20]} Re8 {[%emt 0:00:06]} 41. Qg5 {[%emt 0:00:08]} Re5 {[%emt 0:00:12]} 42. Qg6 {[%emt 0:00:01]} Re7 {[%emt 0:00:06]} 43. Qc6 {[%emt 0:00:06]} Qe5+ {[%emt 0:00:05]} 44. g3 {[%emt 0:00:02]} Qe2 {[%emt 0:00:08]} 45. Qd5+ {[%emt 0:00:09]} Kh7 {[%emt 0:00:10]} 46. Rf4 {[%emt 0:00:11]} Re5 {[%emt 0:00:09]} 47. Rh4+ {[%emt 0:00:06]} Kg6 {[%emt 0:00:02]} 48. Qd6+ {[%emt 0:00:09]} Re6 {[%emt 0:00:04]} 49. Qf4 {[%emt 0:00:06]} Rf6 {[%emt 0:00:46]} 50. Qg4+ {[%emt 0:00:03]} Qxg4 {[%emt 0:00:02]} 51. Rxg4+ {[%emt 0:00:02]} Kh6 {[%emt 0:00:02]} 52. Kg2 {[%emt 0:00:04]} Rd6 {[%emt 0:00:03]} 53. Re4 {[%emt 0:00:03]} 1-0

[Event "Gaprindashvili Cup Open II Stage 2020"]
[Site "Online"]
[Date "2020.11.08"]
[Round "3.15"]
[White "Tsanatsqenishvili, Giorgi"]
[Black "kiladze, Luka"]
[Result "1-0"]
[ECO "B71"]
[WhiteElo "1631"]
[BlackElo "1786"]
[Annotator "NA RC"]
[PlyCount "43"]
[EventDate "2020.11.04"]
[EventType "swiss"]
[SourceTitle "playchess.com"]
[Source "ChessBase"]
[SourceQuality "1"]
[TimeControl "1500+5"]

1. e4 {[%emt 0:00:02]} c5 {[%emt 0:00:05]} 2. Nf3 {[%emt 0:00:01]} d6 {[%emt 0:00:02]} 3. d4 {[%emt 0:00:01]} cxd4 {[%emt 0:00:01]} 4. Nxd4 {[%emt 0:00:02]} Nf6 {[%emt 0:00:01]} 5. Nc3 {[%emt 0:00:01]} g6 {[%emt 0:00:02]} 6. f4 {[%emt 0:00:02]} Nc6 {[%emt 0:00:02]} 7. Nxc6 {[%emt 0:00:02]} bxc6 {[%emt 0:00:02]} 8. e5 {[%emt 0:00:01]} Nd7 {[%emt 0:00:01]} 9. Bc4 {[%emt 0:00:02]} d5 {[%emt 0:00:09]} 10. Nxd5 {[%emt 0:00:02]} Nb6 {[%emt 0:00:45]} 11. Nxb6 {[%emt 0:02:32]} Qxb6 {[%emt 0:00:04]} 12. Qd3 {[%emt 0:00:16]} Bf5 {[%emt 0:00:45]} 13. Qb3 {[%emt 0:00:05]} Qd4 {[%emt 0:01:07]} 14. Bxf7+ {[%emt 0:00:29]} Kd8 {[%emt 0:00:19]} 15. Be3 {[%emt 0:00:03]} Qe4 {[%emt 0:00:03]} 16. O-O-O+ {[%emt 0:00:23]} Kc7 {[%emt 0:00:02]} 17. Rhe1 {[%emt 0:01:13]} Rb8 {[%emt 0:01:33]} 18. Qc3 {[%emt 0:02:03]} e6 {[%emt 0:00:58]} 19. Qa5+ {[%emt 0:00:38]} Rb6 {[%emt 0:00:44]} 20. Qxa7+ {[%emt 0:00:30]} Kc8 {[%emt 0:00:10]} 21. Rd8+ {[%emt 0:00:06]} Kxd8 {[%emt 0:00:08]} 22. Bxb6+ {[%emt 0:00:02]} 1-0

[Event "Gaprindashvili Cup Open II Stage 2020"]
[Site "Online"]
[Date "2020.11.08"]
[Round "3.17"]
[White "Qalichava, Akaki"]
[Black "Tsanatsqenishvili, Alexandre"]
[Result "1-0"]
[ECO "B04"]
[WhiteElo "1877"]
[BlackElo "1702"]
[Annotator "NA"]
[PlyCount "81"]
[EventDate "2020.11.04"]
[EventType "swiss"]
[SourceTitle "playchess.com"]
[Source "ChessBase"]
[SourceQuality "1"]
[TimeControl "1500+5"]

1. e4 {[%emt 0:00:03]} Nf6 {[%emt 0:00:03]} 2. e5 {[%emt 0:00:05]} Nd5 {[%emt 0:00:01]} 3. d4 {[%emt 0:00:03]} d6 {[%emt 0:00:02]} 4. c4 {[%emt 0:00:02]} Nb6 {[%emt 0:00:01]} 5. Nf3 {[%emt 0:00:03]} Bg4 {[%emt 0:00:02]} 6. exd6 {[%emt 0:00:04]} cxd6 {[%emt 0:00:02]} 7. Be2 {[%emt 0:00:04]} Nc6 {[%emt 0:00:01]} 8. b3 {[%emt 0:00:04]} g6 {[%emt 0:00:02]} 9. Nc3 {[%emt 0:00:06]} Bg7 {[%emt 0:00:02]} 10. Be3 {[%emt 0:00:03]} O-O {[%emt 0:00:02]} 11. O-O {[%emt 0:00:02]} h6 {[%emt 0:00:02]} 12. h3 {[%emt 0:00:04]} Bxf3 {[%emt 0:00:02]} 13. Bxf3 {[%emt 0:00:02]} f5 {[%emt 0:00:01]} 14. Qd2 {[%emt 0:01:13]} g5 {[%emt 0:01:01]} 15. d5 {[%emt 0:00:31]} Ne5 {[%emt 0:00:04]} 16. Bd1 {[%emt 0:00:38]} Rc8 {[%emt 0:04:37]} 17. Bxb6 {[%emt 0:00:54]} Qxb6 {[%emt 0:00:06]} 18. Rc1 {[%emt 0:00:06]} f4 {[%emt 0:01:51]} 19. Bc2 {[%emt 0:00:35]} Qb4 {[%emt 0:04:58]} 20. Bb1 {[%emt 0:00:29]} Rf6 {[%emt 0:04:51]} 21. Qc2 {[%emt 0:01:26]} a6 {[%emt 0:00:45]} 22. Qh7+ {[%emt 0:00:33]} Kf7 {[%emt 0:00:15]} 23. Bf5 {[%emt 0:00:54]} Rh8 {[%emt 0:00:42]} 24. Be6+ {[%emt 0:00:02]} Kf8 {[%emt 0:00:03]} 25. Qc2 {[%emt 0:00:04]} h5 {[%emt 0:00:09]} 26. Ne4 {[%emt 0:00:10]} g4 {[%emt 0:00:57]} 27. Nxf6 {[%emt 0:02:05]} Bxf6 {[%emt 0:00:05]} 28. Qe4 {[%emt 0:00:03]} gxh3 {[%emt 0:00:31]} 29. Bxh3 {[%emt 0:00:17]} f3 {[%emt 0:01:28]} 30. gxf3 {[%emt 0:00:18]} Qd2 {[%emt 0:00:25]} 31. Qe3 {[%emt 0:00:29]} Qxa2 {[%emt 0:00:42]} 32. Be6 {[%emt 0:00:22]} h4 {[%emt 0:00:34]} 33. f4 {[%emt 0:00:06]} Ng6 {[%emt 0:00:05]} 34. Kh1 {[%emt 0:00:25]} Rh7 {[%emt 0:00:49]} 35. Rg1 {[%emt 0:00:30]} Rg7 {[%emt 0:00:02]} 36. Bf5 {[%emt 0:00:04]} Nh8 {[%emt 0:00:18]} 37. Rxg7 {[%emt 0:00:05]} Kxg7 {[%emt 0:00:02]} 38. Rg1+ {[%emt 0:00:02]} Kh6 {[%emt 0:00:31]} 39. Be6 {[%emt 0:00:16]} Qc2 {[%emt 0:00:38]} 40. f5+ {[%emt 0:00:05]} Kh7 {[%emt 0:00:04]} 41. Bg8# {[%emt 0:00:02]} 1-0